bitfinex/quotes_BTCUSD_20230120
["timestamp","ask_amount","ask_price","bid_price","bid_amount"]
[1674226473187,0.15,21133.0,21131.0,1.41158768]
[1674226473674,0.66233109,21134.0,21131.0,1.41158768]
[1674226473930,0.009,21133.0,21131.0,1.41158768]
[1674226474181,0.0762,21135.0,21132.0,0.38121213]
[1674226474422,0.009,21133.0,21132.0,0.38121213]
[1674226474672,0.009,21133.0,21132.0,0.68121213]
[1674226474916,0.009,21133.0,21130.0,0.47856763]
[1674226474917,0.10274,21133.0,21131.0,0.473222]
[1674226475171,0.49297675,21133.0,21131.0,0.473222]
[1674226475429,0.69629772,21133.0,21130.0,0.00532763]
[1674226475708,0.5,21131.0,21130.0,0.00532763]
[1674226475993,0.5,21131.0,21130.0,0.37560132]
[1674226476443,0.5,21131.0,21130.0,0.84884332]
[1674226476693,0.62523675,21133.0,21130.0,1.14884332]
[1674226476948,1.23133243,21133.0,21130.0,0.00532763]
[1674226477193,0.318485,21132.0,21130.0,0.00532763]
[1674226477443,0.333453,21131.0,21130.0,0.00532763]
[1674226477685,0.544653,21131.0,21130.0,0.00532763]
[1674226477928,1.017891,21131.0,21130.0,0.00532763]
[1674226478176,1.491129,21131.0,21130.0,0.00532763]
[1674226478422,1.582329,21131.0,21130.0,0.00532763]
[1674226479189,1.96092805,21131.0,21130.0,0.00532763]
[1674226480211,1.94592805,21131.0,21130.0,0.00532763]
[1674226480469,2.86369501,21131.0,21130.0,0.00532763]
[1674226480735,2.87219501,21131.0,21130.0,0.00532763]
[1674226481485,2.87219501,21131.0,21130.0,7.63e-06]
[1674226481733,3.96049501,21131.0,21130.0,7.63e-06]
[1674226481977,4.11809502,21131.0,21130.0,7.63e-06]
[1674226482229,4.11809502,21131.0,21122.0,0.00561651]
[1674226482230,6e-05,21129.0,21122.0,0.00561651]
[1674226482491,0.27339,21126.0,21122.0,0.39330705]
[1674226482732,0.327324,21125.0,21122.0,0.39330705]
[1674226482984,0.338455,21124.0,21122.0,0.39330705]
[1674226483237,0.19432097,21124.0,21122.0,0.39330705]
[1674226483483,0.2365,21126.0,21122.0,0.39330705]
[1674226483982,0.337855,21125.0,21122.0,0.39330705]
[1674226484238,0.31805,21124.0,21122.0,0.86674405]
[1674226484486,0.01,21124.0,21122.0,0.86674405]
[1674226484737,0.15,21126.0,21122.0,0.86674405]
[1674226484982,0.51546017,21126.0,21123.0,0.37039309]
[1674226485224,0.47714079,21125.0,21123.0,0.37039309]
[1674226485476,0.317853,21124.0,21123.0,0.37039309]
[1674226486273,0.46714079,21125.0,21123.0,0.37039309]
[1674226486520,0.16,21124.0,21123.0,0.37039309]
[1674226486775,0.461441,21124.0,21122.0,0.47905351]
[1674226487042,0.31941,21123.0,21122.0,0.95249351]
[1674226487363,0.54334079,21125.0,21123.0,0.43724863]
[1674226487812,0.42280854,21124.0,21122.0,0.30561651]
[1674226488072,0.481834,21123.0,21122.0,0.00561651]
[1674226488798,0.15,21123.0,21122.0,0.00561651]
[1674226489053,0.0762,21125.0,21122.0,0.73656533]
[1674226489553,0.0842,21125.0,21122.0,0.73656533]
[1674226489797,0.0762,21125.0,21122.0,0.73656533]
[1674226490039,0.0762,21125.0,21122.0,1.20999833]
[1674226490288,0.50002984,21125.0,21122.0,1.20999833]
[1674226490552,0.43149886,21124.0,21122.0,0.90999833]
[1674226491053,0.43149886,21124.0,21122.0,1.38343833]
[1674226491311,0.9354,21128.0,21123.0,0.3]
[1674226491563,0.44211804,21126.0,21124.0,0.473389]
[1674226491822,6e-05,21129.0,21124.0,0.946784]
[1674226492060,0.43720364,21128.0,21125.0,0.3]
[1674226492329,0.43720364,21128.0,21126.0,0.9467]
[1674226492583,6e-05,21129.0,21126.0,0.9467]
[1674226492584,0.37100824,21127.0,21126.0,0.47335]
[1674226492814,0.42691252,21128.0,21126.0,0.9467]
[1674226493065,0.42691252,21128.0,21126.0,0.47335]
[1674226493312,0.51691252,21128.0,21126.0,0.46835]
[1674226493808,0.51691252,21128.0,21126.0,0.85841564]
[1674226494017,0.09,21128.0,21126.0,0.85841564]
[1674226494263,0.09,21128.0,21127.0,0.3]
[1674226494516,0.09,21128.0,21127.0,0.946654]
[1674226494761,0.09,21128.0,21127.0,1.246654]
[1674226495097,0.0903268,21128.0,21127.0,1.246654]
[1674226495881,0.0003268,21128.0,21127.0,1.246654]
[1674226496160,0.0003268,21128.0,21127.0,1.37790054]
[1674226496161,0.0833268,21128.0,21127.0,1.37790054]
[1674226496432,0.0003268,21128.0,21127.0,1.67690054]
[1674226496689,0.0073268,21128.0,21127.0,1.68490054]
[1674226497200,0.0073268,21128.0,21127.0,2.01042654]
[1674226497968,0.5073268,21128.0,21127.0,2.01042654]
[1674226499104,0.5073268,21128.0,21127.0,1.67490054]
[1674226500150,0.5073268,21128.0,21127.0,1.37490054]
[1674226500966,0.0073268,21128.0,21127.0,1.37490054]
[1674226501763,0.0073268,21128.0,21127.0,1.99840254]
[1674226502027,0.5073268,21128.0,21127.0,1.99840254]
[1674226502298,0.5073268,21128.0,21127.0,1.67490054]
[1674226502625,0.93986173,21128.0,21127.0,0.944654]
[1674226503141,0.5073268,21128.0,21127.0,1.30397103]
[1674226503666,0.5073268,21128.0,21127.0,0.471327]
[1674226503961,0.5073268,21128.0,21127.0,0.008]
[1674226503962,0.38871333,21128.0,21127.0,0.008]
[1674226504225,0.38871333,21128.0,21126.0,0.27334108]
[1674226504226,0.36803605,21127.0,21126.0,0.27334108]
[1674226504502,0.72051648,21127.0,21124.0,0.473387]
[1674226504761,0.72051648,21127.0,21124.0,0.946781]
[1674226504762,0.327961,21126.0,21124.0,0.946781]
[1674226505027,0.328664,21125.0,21124.0,0.946781]
[1674226505289,0.316265,21125.0,21124.0,0.946781]
[1674226505561,0.65,21126.0,21124.0,0.473394]
[1674226505839,0.15,21126.0,21124.0,0.473394]
[1674226506101,0.340469,21125.0,21124.0,0.474394]
[1674226506363,0.3910797,21127.0,21124.0,0.946789]
[1674226506633,0.46660356,21126.0,21124.0,0.947789]
[1674226506907,0.009,21126.0,21125.0,0.3]
[1674226507441,0.4233131,21127.0,21125.0,0.773372]
[1674226508008,0.00039522,21127.0,21125.0,1.246744]
[1674226508289,0.00939522,21127.0,21126.0,0.307715]
[1674226508560,0.00039522,21127.0,21126.0,1.404415]
[1674226508818,0.00939522,21127.0,21126.0,1.554415]
[1674226509074,0.00027311,21127.0,21126.0,1.554415]
[1674226509379,0.00027311,21127.0,21126.0,0.47335]
[1674226509692,0.01027311,21127.0,21126.0,0.77435]
[1674226509959,0.01027311,21127.0,21126.0,0.47435]
[1674226510529,0.01027311,21127.0,21126.0,0.9477]
[1674226510732,0.01027311,21127.0,21126.0,0.47435]
[1674226511013,0.01027311,21127.0,21126.0,0.77435]
[1674226511553,0.01027311,21127.0,21126.0,0.47435]
[1674226512089,0.45613908,21127.0,21126.0,0.47435]
[1674226512369,0.45613908,21127.0,21126.0,0.001]
[1674226512642,0.78128608,21127.0,21126.0,0.001]
[1674226514261,0.78128608,21127.0,21126.0,0.47435]
[1674226514707,0.33542011,21127.0,21126.0,0.77435]
[1674226514709,0.33542011,21127.0,21126.0,1.15165691]
[1674226514974,0.01027311,21127.0,21126.0,1.62500691]
[1674226516304,0.01027311,21127.0,21126.0,1.95578591]
[1674226516844,0.01027311,21127.0,21126.0,2.03198591]
[1674226517115,0.01027311,21127.0,21126.0,2.60116971]
[1674226517379,0.0092458,21127.0,21126.0,2.71339677]
[1674226517913,0.50950649,21127.0,21126.0,2.71339677]
[1674226518181,0.50950649,21127.0,21126.0,2.86543122]
[1674226518497,0.50950649,21127.0,21126.0,2.97804827]
[1674226518752,0.50950649,21127.0,21126.0,3.17350823]
[1674226519305,0.50950649,21127.0,21126.0,2.88212735]
[1674226519576,0.50950649,21127.0,21126.0,2.97809401]
[1674226519887,0.50950649,21127.0,21126.0,2.94389217]
[1674226520168,0.50950649,21127.0,21126.0,1.30946482]
[1674226520967,0.00950649,21127.0,21126.0,1.30946482]
[1674226521539,0.00950649,21127.0,21126.0,1.60946482]
[1674226522080,0.00950649,21127.0,21126.0,2.55600781]
[1674226522344,0.00950649,21127.0,21126.0,2.88509281]
[1674226522606,0.00950649,21127.0,21126.0,2.99770986]
[1674226522868,0.00950649,21127.0,21126.0,3.05072618]
[1674226523135,0.00950649,21127.0,21126.0,2.60902413]
[1674226523423,0.00950649,21127.0,21126.0,1.66248114]
[1674226523686,0.00893726,21127.0,21126.0,1.66248114]
[1674226523978,0.00893726,21127.0,21126.0,1.36248114]
[1674226524805,0.10267726,21127.0,21126.0,1.36248114]
[1674226525080,0.32996826,21127.0,21126.0,1.66248114]
[1674226525548,0.00893726,21127.0,21126.0,1.66248114]
[1674226526104,0.60882729,21127.0,21126.0,0.47435]
[1674226526627,0.93659829,21127.0,21126.0,0.47435]
[1674226527173,0.00893726,21127.0,21126.0,0.47435]
[1674226527437,0.00893726,21127.0,21126.0,1.33041729]
[1674226528031,0.00893726,21127.0,21126.0,1.63041729]
[1674226529118,0.00893726,21127.0,21126.0,2.19424772]
[1674226529382,0.00893726,21127.0,21126.0,2.0127678]
[1674226529642,0.00893726,21127.0,21126.0,1.7030008]
[1674226530715,0.00893726,21127.0,21126.0,3.09109783]
[1674226530970,0.00893726,21127.0,21126.0,2.63579703]
[1674226531237,0.00893726,21127.0,21126.0,3.24901233]
[1674226531489,0.00893726,21127.0,21126.0,2.96805469]
[1674226531770,0.00893726,21127.0,21126.0,3.08067174]
[1674226532003,0.00893726,21127.0,21126.0,3.3451903]
[1674226533834,0.00893726,21127.0,21126.0,2.78769854]
[1674226534109,0.00893726,21127.0,21126.0,2.99521208]
[1674226534409,0.00893726,21127.0,21126.0,3.27738895]
[1674226534677,0.00893726,21127.0,21126.0,2.93985998]
[1674226534937,0.00893726,21127.0,21126.0,3.16530275]
[1674226535489,0.00893726,21127.0,21126.0,3.43922001]
[1674226535805,0.00893726,21127.0,21126.0,3.27738895]
[1674226536059,0.00893726,21127.0,21126.0,3.2774586]
[1674226536326,0.00893726,21127.0,21126.0,3.16541132]
[1674226536875,0.00893726,21127.0,21126.0,3.64226409]
[1674226537135,0.00893726,21127.0,21126.0,3.41675167]
[1674226537397,0.00893726,21127.0,21126.0,3.34104239]
[1674226537649,0.00893726,21127.0,21126.0,3.09820204]
[1674226538196,0.00893726,21127.0,21126.0,3.2102586]
[1674226538458,0.00804354,21127.0,21126.0,2.98474618]
[1674226539503,0.00804354,21127.0,21126.0,3.38381361]
[1674226539984,0.00804354,21127.0,21126.0,2.98474618]
[1674226540233,0.00804354,21127.0,21126.0,3.41990653]
[1674226540761,0.00804354,21127.0,21126.0,2.98474618]
[1674226541310,0.00804354,21127.0,21126.0,2.77925795]
[1674226541582,0.00526576,21127.0,21126.0,3.69092688]
[1674226541842,0.00526576,21127.0,21126.0,4.21812688]
[1674226542097,0.00526576,21127.0,21126.0,3.69092688]
[1674226542367,0.00526576,21127.0,21126.0,3.73910186]
[1674226543138,0.00026069,21127.0,21126.0,3.73810186]
[1674226543406,0.00026069,21127.0,21126.0,3.82610186]
[1674226543698,0.00026069,21127.0,21126.0,3.73810186]
[1674226543929,0.00026069,21127.0,21126.0,3.5630369]
[1674226544187,0.00034211,21127.0,21126.0,3.8526369]
[1674226544472,0.00034211,21127.0,21126.0,3.13829029]
[1674226544756,0.00034211,21127.0,21126.0,2.89279299]
[1674226545015,0.5,21130.0,21126.0,3.2383975]
[1674226545278,0.5,21130.0,21129.0,0.11263359]
[1674226545536,0.5,21130.0,21129.0,2.97188439]
[1674226545816,0.5,21130.0,21129.0,3.98267069]
[1674226546089,0.5,21130.0,21129.0,3.84951077]
[1674226546631,0.5,21130.0,21129.0,4.14479039]
[1674226546886,0.5,21130.0,21129.0,3.76856037]
[1674226547150,0.5,21130.0,21129.0,4.3345627]
[1674226547420,0.5,21130.0,21129.0,4.42916831]
[1674226547938,0.5,21130.0,21129.0,4.3345627]
[1674226547941,0.5,21130.0,21129.0,4.31519024]
[1674226548204,0.5,21130.0,21129.0,4.1083358]
[1674226548491,0.5,21130.0,21129.0,4.75564847]
[1674226548777,0.86778289,21133.0,21129.0,4.5303698]
[1674226549038,0.86778289,21133.0,21130.0,1.09375898]
[1674226549331,0.5,21133.0,21131.0,3.54394083]
[1674226549599,0.5,21133.0,21132.0,0.288706]
[1674226549874,0.5,21133.0,21132.0,2.59392464]
[1674226550138,0.5,21133.0,21132.0,2.75482464]
[1674226550943,0.51287516,21134.0,21132.0,2.75482464]
[1674226551236,0.51279739,21134.0,21133.0,1.63860917]
[1674226551509,0.51279739,21134.0,21133.0,2.39314217]
[1674226551810,0.01279739,21134.0,21133.0,1.089369]
[1674226552343,0.01279739,21134.0,21133.0,1.4360189]
[1674226552736,0.01279739,21134.0,21133.0,1.4275189]
[1674226552739,0.16279739,21134.0,21133.0,1.4275189]
[1674226552983,0.01279739,21134.0,21133.0,1.2118429]
[1674226553230,0.01279739,21134.0,21133.0,1.5201069]
[1674226553735,0.51279739,21134.0,21133.0,1.5201069]
[1674226554725,0.01279739,21134.0,21133.0,1.5201069]
[1674226554968,0.01305702,21134.0,21133.0,1.173457]
[1674226555216,0.01305702,21134.0,21133.0,1.52690275]
[1674226555465,0.01305702,21134.0,21133.0,1.249157]
[1674226555737,0.01305702,21134.0,21133.0,2.19531211]
[1674226555992,0.01305702,21134.0,21133.0,1.249157]
[1674226556501,0.01305702,21134.0,21133.0,2.30785003]
[1674226556750,0.01305702,21134.0,21133.0,1.70872615]
[1674226557250,0.01305702,21134.0,21133.0,1.36559555]
[1674226557771,0.51305702,21134.0,21133.0,1.22629142]
[1674226559466,0.51305702,21134.0,21133.0,1.21802742]
[1674226560470,0.51305702,21134.0,21133.0,1.39122042]
[1674226560712,0.01305702,21134.0,21133.0,1.39122042]
[1674226560966,0.01305702,21134.0,21133.0,1.038386]
[1674226561214,0.40079912,21134.0,21133.0,1.038386]
[1674226561471,0.39382516,21134.0,21133.0,1.038386]
[1674226561707,0.00608306,21134.0,21133.0,1.338386]
[1674226561976,0.00608306,21134.0,21133.0,1.67249004]
[1674226562726,0.00608306,21134.0,21133.0,1.99417204]
[1674226564213,0.00608306,21134.0,21133.0,1.660068]
[1674226564708,0.50547476,21134.0,21133.0,2.68234925]
[1674226565176,0.50547476,21134.0,21133.0,2.80340472]
[1674226565424,0.33564242,21134.0,21133.0,3.84020163]
[1674226565691,0.0130479,21136.0,21133.0,3.66451501]
[1674226565928,0.0130479,21136.0,21135.0,0.1524]
[1674226566173,0.0130479,21136.0,21135.0,2.27624564]
[1674226566421,0.0130479,21136.0,21135.0,3.72046744]
[1674226566674,0.0130479,21136.0,21135.0,3.83271741]
[1674226567111,0.01332655,21136.0,21135.0,3.72046744]
[1674226567375,0.01332655,21136.0,21135.0,3.92471741]
[1674226567632,5.5e-07,21136.0,21135.0,3.81246744]
[1674226567852,0.01304904,21137.0,21136.0,0.15]
[1674226568151,0.01304904,21137.0,21136.0,2.06391264]
[1674226568415,0.01304904,21137.0,21136.0,3.05806401]
[1674226568675,0.01304904,21137.0,21136.0,1.685921]
[1674226568936,0.01304904,21137.0,21136.0,1.778921]
[1674226569220,0.0133192,21137.0,21136.0,1.778921]
[1674226570294,0.0133192,21137.0,21136.0,1.88632185]
[1674226570565,0.0133192,21137.0,21136.0,1.75909613]
[1674226570566,0.20764017,21137.0,21136.0,1.75909613]
[1674226570876,0.0133192,21137.0,21136.0,1.50162185]
[1674226571133,0.0133192,21137.0,21136.0,1.37285285]
[1674226571393,0.0133192,21137.0,21136.0,1.67194485]
[1674226572732,0.0133192,21137.0,21136.0,1.98044485]
[1674226573515,0.0133192,21137.0,21136.0,1.722544]
[1674226574605,0.0133192,21137.0,21136.0,2.11217658]
[1674226575114,0.0133192,21137.0,21136.0,2.0706719]
[1674226575405,0.0133192,21137.0,21136.0,1.722544]
[1674226577015,0.00025866,21137.0,21136.0,2.38091825]
[1674226577238,0.5,21140.0,21137.0,0.15009329]
[1674226577713,0.5,21140.0,21138.0,2.048379]
[1674226577980,0.5,21140.0,21139.0,0.599045]
[1674226578233,0.5,21140.0,21139.0,2.02609291]
[1674226578505,0.5,21140.0,21139.0,1.87609291]
[1674226579309,0.5,21140.0,21139.0,1.96909291]
[1674226580597,0.09809,21140.0,21139.0,1.950883]
[1674226580863,0.51397366,21141.0,21140.0,0.15]
[1674226581148,0.51397366,21141.0,21140.0,1.62280908]
[1674226581405,0.01286079,21142.0,21140.0,2.00750908]
[1674226581678,0.01286079,21142.0,21141.0,0.98791268]
[1674226581935,0.01397366,21143.0,21142.0,0.15]
[1674226582211,0.01397366,21143.0,21142.0,1.252007]
[1674226582786,0.01397366,21143.0,21142.0,1.552007]
[1674226584100,0.01397366,21143.0,21142.0,1.628207]
[1674226584104,0.01397366,21143.0,21142.0,2.07273852]
[1674226584880,0.01397366,21143.0,21142.0,2.06244172]
[1674226585144,0.01397366,21143.0,21142.0,2.15444172]
[1674226585420,0.01397366,21143.0,21142.0,1.628207]
[1674226585683,0.0125763,21143.0,21142.0,1.720207]
[1674226585951,3e-07,21143.0,21142.0,2.57780837]
[1674226586212,0.5,21145.0,21143.0,0.15]
[1674226586721,0.01430469,21146.0,21145.0,0.15]
[1674226586988,0.01430469,21146.0,21145.0,2.00963746]
[1674226587514,0.01430469,21146.0,21145.0,2.0095352]
[1674226588042,6.9e-07,21146.0,21145.0,1.720048]
[1674226588295,6.9e-07,21146.0,21145.0,1.628048]
[1674226588556,6.9e-07,21146.0,21145.0,1.720048]
[1674226589077,6.9e-07,21146.0,21145.0,2.13373883]
[1674226591227,6.9e-07,21146.0,21145.0,1.635348]
[1674226592073,6.9e-07,21146.0,21145.0,1.485348]
[1674226592347,6.9e-07,21146.0,21145.0,1.185348]
[1674226592612,6.9e-07,21146.0,21145.0,1.193848]
[1674226592876,6.9e-07,21146.0,21145.0,1.03785]
[1674226594431,6.9e-07,21146.0,21145.0,1.362394]
[1674226594910,6.9e-07,21146.0,21145.0,1.33785]
[1674226595173,6.9e-07,21146.0,21145.0,1.03785]
[1674226596315,0.39686069,21146.0,21145.0,0.29705916]
[1674226596585,0.32066,21146.0,21144.0,0.472928]
[1674226596842,0.321199,21145.0,21144.0,0.472928]
[1674226597111,0.65315933,21145.0,21144.0,0.472928]
[1674226597674,0.65315933,21145.0,21143.0,0.47295]
[1674226597946,0.65315933,21145.0,21143.0,0.472949]
[1674226597947,0.453185,21144.0,21143.0,0.472949]
[1674226598208,0.458273,21144.0,21143.0,0.472949]
[1674226598696,0.481228,21144.0,21143.0,0.472954]
[1674226598954,0.15,21144.0,21143.0,0.472954]
[1674226599222,0.15,21144.0,21142.0,0.47297]
[1674226599475,0.39468026,21143.0,21142.0,0.47297]
[1674226599807,0.47088026,21143.0,21141.0,0.472995]
[1674226600008,0.39468026,21143.0,21142.0,0.3]
[1674226600276,0.54708026,21143.0,21141.0,1.33616633]
[1674226600544,0.39468026,21143.0,21142.0,0.078]
[1674226600804,0.54708026,21143.0,21141.0,1.33616633]
[1674226601063,0.0762,21142.0,21141.0,1.42216633]
[1674226601322,0.0762,21142.0,21141.0,1.72216633]
[1674226602120,0.0762,21142.0,21141.0,1.332013]
[1674226602617,0.59932826,21142.0,21141.0,1.032013]
[1674226602619,0.59932826,21142.0,21141.0,0.946013]
[1674226602880,0.60032826,21142.0,21141.0,1.032013]
[1674226603146,0.45032826,21142.0,21141.0,1.332013]
[1674226603415,0.001,21142.0,21141.0,1.332013]
[1674226603720,0.001,21142.0,21141.0,1.6957233]
[1674226603927,0.34119229,21144.0,21143.0,0.1164]
[1674226604467,0.0762,21145.0,21143.0,1.062338]
[1674226604743,0.47088611,21146.0,21144.0,0.3]
[1674226605000,0.47088611,21146.0,21144.0,1.245874]
[1674226605262,0.47088611,21146.0,21144.0,0.945874]
[1674226606386,0.47688611,21146.0,21144.0,0.949874]
[1674226606835,0.58149218,21145.0,21144.0,0.949874]
[1674226607367,0.43149218,21145.0,21144.0,1.249874]
[1674226607906,0.45542555,21146.0,21144.0,1.249874]
[1674226608171,0.45542555,21146.0,21145.0,0.3]
[1674226608433,0.33874366,21145.0,21144.0,0.949855]
[1674226608693,0.33874366,21145.0,21144.0,0.949853]
[1674226608984,0.33874366,21145.0,21144.0,0.945853]
[1674226609242,0.34474366,21145.0,21144.0,1.249853]
[1674226610017,0.34474366,21145.0,21144.0,0.949853]
[1674226611316,0.34474366,21145.0,21144.0,1.249853]
[1674226612352,0.006,21145.0,21144.0,1.249853]
[1674226612624,0.006,21145.0,21144.0,1.63180652]
[1674226612934,0.006,21145.0,21144.0,1.96187235]
[1674226615271,0.00646729,21145.0,21144.0,1.563654]
[1674226615553,0.00646729,21145.0,21144.0,1.95936168]
[1674226616886,0.00646729,21145.0,21144.0,1.563654]
[1674226617939,0.00646729,21145.0,21144.0,2.02338149]
[1674226618276,0.00507282,21145.0,21144.0,2.93034502]
[1674226618453,0.00507282,21145.0,21144.0,2.81804972]
[1674226618715,0.00507282,21145.0,21144.0,3.42375335]
[1674226618973,0.00046729,21145.0,21144.0,3.03912164]
[1674226619231,0.01430469,21149.0,21145.0,0.15]
[1674226619499,0.01430469,21149.0,21147.0,0.15]
[1674226619746,0.01430469,21149.0,21148.0,2.197411]
[1674226620002,0.01430469,21149.0,21148.0,2.497411]
[1674226620270,0.01430469,21149.0,21148.0,2.191428]
[1674226620549,0.55643189,21149.0,21148.0,1.418571]
[1674226620804,0.55643189,21149.0,21148.0,0.945714]
[1674226621791,0.55643189,21149.0,21148.0,1.033714]
[1674226622086,0.55643189,21149.0,21148.0,0.77620836]
[1674226622610,0.54143189,21149.0,21148.0,0.77620836]
[1674226623127,0.541883,21149.0,21148.0,1.07620836]
[1674226623410,0.541883,21149.0,21148.0,0.77620836]
[1674226623924,0.541883,21149.0,21148.0,0.30335136]
[1674226624212,1.018716,21149.0,21148.0,0.30335136]
[1674226625017,1.018716,21149.0,21148.0,0.088]
[1674226625541,1.094916,21149.0,21148.0,0.088]
[1674226626818,1.094916,21149.0,21146.0,1.38561428]
[1674226627081,1.094916,21149.0,21148.0,0.006]
[1674226627082,0.62737831,21149.0,21148.0,0.006]
[1674226627347,1.09065331,21149.0,21148.0,0.006]
[1674226627596,1.07965331,21149.0,21147.0,0.496876]
[1674226627883,0.397969,21148.0,21147.0,0.969742]
[1674226628142,0.07625111,21149.0,21147.0,1.64568515]
[1674226628394,0.01145111,21149.0,21148.0,0.70369466]
[1674226628653,0.01145111,21149.0,21148.0,1.79940866]
[1674226628904,0.01145111,21149.0,21148.0,1.64340866]
[1674226628905,0.00045111,21149.0,21148.0,1.64340866]
[1674226630022,0.00045111,21149.0,21148.0,1.94729166]
[1674226630477,0.00045111,21149.0,21148.0,1.95329166]
[1674226630478,0.01145111,21149.0,21148.0,1.95329166]
[1674226630735,0.00045111,21149.0,21148.0,1.94729166]
[1674226630992,0.00145111,21149.0,21148.0,2.02929166]
[1674226631264,0.00045111,21149.0,21148.0,1.97010166]
[1674226631528,0.00145111,21149.0,21148.0,2.05110166]
[1674226631792,0.00045111,21149.0,21148.0,1.97010166]
[1674226632050,0.00145111,21149.0,21148.0,2.05110166]
[1674226636915,0.00145111,21149.0,21148.0,1.72440866]
[1674226637177,0.00145111,21149.0,21148.0,2.04202066]
[1674226638546,0.00135111,21149.0,21148.0,2.04202066]
[1674226639516,0.00135111,21149.0,21148.0,1.644326]
[1674226639785,0.00135111,21149.0,21148.0,1.652826]
[1674226640059,0.00105534,21149.0,21148.0,3.14986142]
[1674226640320,0.00140945,21149.0,21148.0,2.10510854]
[1674226640836,0.50140945,21149.0,21148.0,2.35818207]
[1674226641098,0.50140945,21149.0,21148.0,1.79660854]
[1674226641371,0.50140945,21149.0,21148.0,1.47899654]
[1674226642131,0.00140945,21149.0,21148.0,1.47899654]
[1674226642662,0.00140945,21149.0,21148.0,1.77899654]
[1674226642938,0.00140945,21149.0,21148.0,2.12279554]
[1674226643220,0.00140945,21149.0,21148.0,1.328774]
[1674226643476,0.49571103,21149.0,21148.0,1.026714]
[1674226644269,0.00140945,21149.0,21148.0,1.026714]
[1674226644785,0.00140945,21149.0,21148.0,1.326714]
[1674226645954,0.00140945,21149.0,21148.0,1.67885251]
[1674226646412,0.00140945,21149.0,21148.0,1.99411651]
[1674226649335,0.00140945,21149.0,21148.0,1.67885251]
[1674226650311,0.00140945,21149.0,21148.0,2.00646251]
[1674226651586,0.00140945,21149.0,21148.0,1.67885251]
[1674226652093,1.03854145,21150.0,21149.0,0.15]
[1674226652355,0.01485672,21151.0,21149.0,2.57072309]
[1674226652606,0.01485672,21151.0,21150.0,0.470903]
[1674226652857,0.01485672,21151.0,21150.0,1.716529]
[1674226653917,0.01485672,21151.0,21150.0,2.66193922]
[1674226654168,0.01485672,21151.0,21150.0,3.00072054]
[1674226654433,0.01638851,21153.0,21150.0,3.14076525]
[1674226654653,0.01638851,21153.0,21151.0,0.425419]
[1674226654904,0.01638851,21153.0,21152.0,2.041072]
[1674226655161,0.01638851,21153.0,21152.0,2.661939]
[1674226655421,0.01675308,21154.0,21153.0,0.43361149]
[1674226655676,0.01675308,21154.0,21153.0,1.63735049]
[1674226657200,0.19578755,21157.0,21153.0,1.353739]
[1674226657540,0.19578755,21157.0,21154.0,1.0434577]
[1674226657720,0.19578755,21157.0,21155.0,1.890804]
[1674226657977,0.19578755,21157.0,21156.0,0.631152]
[1674226658237,0.19578755,21157.0,21156.0,1.57651]
[1674226658792,0.18578755,21157.0,21156.0,1.57651]
[1674226659035,0.18624508,21157.0,21156.0,1.57651]
[1674226659291,0.18624508,21157.0,21156.0,1.66951]
[1674226659552,0.18624508,21157.0,21156.0,1.57651]
[1674226659800,0.18624508,21157.0,21156.0,1.66951]
[1674226660336,0.18624508,21157.0,21156.0,2.03339104]
[1674226661466,0.18624508,21157.0,21156.0,1.73339104]
[1674226661659,0.18624508,21157.0,21156.0,1.40223904]
[1674226662173,0.18624508,21157.0,21156.0,1.42623904]
[1674226662174,0.26184508,21157.0,21156.0,1.42623904]
[1674226662434,0.60263308,21157.0,21156.0,1.42623904]
[1674226662717,0.60263308,21157.0,21156.0,1.062358]
[1674226662957,0.94659881,21157.0,21156.0,1.062358]
[1674226663495,1.02279881,21157.0,21156.0,0.117]
[1674226663757,1.17279881,21157.0,21156.0,0.153]
[1674226664273,1.17279881,21157.0,21156.0,0.06]
[1674226664536,1.17279881,21157.0,21156.0,0.07]
[1674226664777,1.17279881,21157.0,21156.0,0.06]
[1674226665030,1.40496444,21157.0,21156.0,0.067]
[1674226665506,1.8278004,21157.0,21156.0,0.067]
[1674226665705,1.60263477,21157.0,21156.0,0.067]
[1674226665960,2.07529077,21157.0,21156.0,0.067]
[1674226666215,2.50972849,21157.0,21156.0,0.067]
[1674226666987,1.99190413,21157.0,21156.0,0.067]
[1674226667237,1.70230413,21157.0,21156.0,0.067]
[1674226668003,2.17496013,21157.0,21156.0,0.067]
[1674226668263,1.78114508,21157.0,21156.0,0.067]
[1674226668789,1.5822829,21157.0,21156.0,0.067]
[1674226669018,1.78114508,21157.0,21156.0,0.067]
[1674226669277,1.59768908,21157.0,21156.0,0.067]
[1674226669527,2.54754677,21157.0,21156.0,0.167]
[1674226670001,2.66910409,21157.0,21156.0,0.167]
[1674226670258,2.55604677,21157.0,21156.0,0.167]
[1674226670543,1.59276322,21157.0,21156.0,0.167]
[1674226670802,1.12296322,21157.0,21156.0,0.167]
[1674226673244,1.12296322,21157.0,21156.0,0.131]
[1674226673679,0.65523308,21157.0,21156.0,0.131]
[1674226673943,1.20358908,21157.0,21156.0,0.131]
[1674226674214,1.7893024,21157.0,21156.0,0.131]
[1674226674489,2.36685806,21157.0,21156.0,0.131]
[1674226674738,1.84141173,21157.0,21156.0,0.131]
[1674226675007,1.95446905,21157.0,21156.0,0.131]
[1674226675287,2.12376781,21157.0,21156.0,0.131]
[1674226675823,4.15467233,21157.0,21149.0,0.50938621]
[1674226676081,0.3456362,21155.0,21149.0,0.92696262]
[1674226676347,0.1516,21150.0,21149.0,0.92696662]
[1674226676614,0.65644297,21150.0,21149.0,0.45414962]
[1674226676868,0.462122,21150.0,21149.0,0.41814962]
[1674226677215,0.4625394,21150.0,21149.0,0.41814962]
[1674226677397,0.4625394,21150.0,21148.0,0.945677]
[1674226677654,0.321893,21149.0,21148.0,0.945677]
[1674226678170,0.0758174,21150.0,21148.0,0.945677]
[1674226678443,0.321942,21149.0,21148.0,0.945677]
[1674226678689,0.318942,21149.0,21148.0,0.945677]
[1674226678948,0.48202513,21150.0,21148.0,0.945677]
[1674226678949,0.47502513,21150.0,21148.0,0.945677]
[1674226679206,0.332261,21149.0,21148.0,0.945677]
[1674226679459,0.47502513,21150.0,21148.0,1.35105406]
[1674226679460,0.0758174,21150.0,21148.0,1.35105406]
[1674226679976,0.007,21149.0,21148.0,1.35105406]
[1674226680248,0.007,21149.0,21148.0,1.37318029]
[1674226680249,0.00041645,21149.0,21148.0,1.37318029]
[1674226680507,0.00041645,21149.0,21148.0,1.67318029]